[Event "44th Chess Olympiad Women 2022"]
[Site "Chennai"]
[Date "2022.08.02"]
[Round "5.1"]
[White "Harika, Dronavalli"]
[Black "Milliet, Sophie"]
[Result "1/2-1/2"]
[ECO "D02"]
[WhiteElo "2517"]
[BlackElo "2396"]
[Annotator "RC"]
[PlyCount "69"]
[EventDate "2022.07.29"]
[EventType "team-tourn"]
[EventCountry "IND"]
[SourceTitle "playchess.com"]
[Source "ChessBase"]
[SourceQuality "1"]
[WhiteTeam "India"]
[BlackTeam "France"]
[WhiteTeamCountry "IND"]
[BlackTeamCountry "FRA"]
[TimeControl "40/5400+30:1800+30"]

1. d4 {[%emt 0:00:07]} Nf6 {[%emt 0:00:21]} 2. Nf3 {[%emt 0:00:07]} e6 {[%emt 0:00:20]} 3. Bf4 {[%emt 0:00:30]} d5 {[%emt 0:00:15]} 4. e3 {[%emt 0:00:37]} Bd6 {[%emt 0:04:47]} 5. Ne5 {[%emt 0:01:33]} O-O {[%emt 0:05:35]} 6. Bd3 {[%emt 0:04:48]} c5 {[%emt 0:10:02]} 7. c3 {[%emt 0:00:09]} Nc6 {[%emt 0:01:07]} 8. Nd2 {[%emt 0:00:23]} Qc7 {[%emt 0:08:47]} 9. Ndf3 {[%emt 0:00:43]} c4 {[%emt 0:05:54]} 10. Bc2 {[%emt 0:06:10]} b5 {[%emt 0:00:53]} 11. h4 {[%emt 0:22:59]} Bb7 {[%emt 0:04:37]} 12. Nxc6 {[%emt 0:24:34]} Bxf4 {[%emt 0:07:18]} 13. exf4 {[%emt 0:06:37]} Bxc6 {[%emt 0:00:07]} 14. Ne5 {[%emt 0:00:13]} Rab8 {[%emt 0:06:58]} 15. a3 {[%emt 0:01:11]} a5 {[%emt 0:00:30]} 16. O-O {[%emt 0:00:36]} b4 {[%emt 0:01:48]} 17. axb4 {[%emt 0:00:39]} axb4 {[%emt 0:00:04]} 18. Qd2 {[%emt 0:06:38]} b3 {[%emt 0:07:02]} 19. Bb1 {[%emt 0:00:59]} Ra8 {[%emt 0:03:36]} 20. Rxa8 {[%emt 0:00:20]} Rxa8 {[%emt 0:00:06]} 21. Re1 {[%emt 0:01:01]} Nd7 {[%emt 0:04:14]} 22. f5 {[%emt 0:05:04]} exf5 {[%emt 0:11:34]} 23. Bxf5 {[%emt 0:01:37]} Nf8 {[%emt 0:00:53]} 24. h5 {[%emt 0:01:15]} h6 {[%emt 0:01:27]} 25. g3 {[%emt 0:01:12]} Bb7 {[%emt 0:02:21]} 26. Ng4 {[%emt 0:06:32]} Bc8 {[%emt 0:02:21]} 27. Bxc8 {[%emt 0:01:03]} Qxc8 {[%emt 0:00:02]} 28. Qf4 {[%emt 0:02:38]} Ne6 {[%emt 0:05:06]} 29. Qf5 {[%emt 0:00:08]} Nc7 {[%emt 0:02:19]} 30. Qf4 {[%emt 0:02:00]} Ne6 {[%emt 0:00:03]} 31. Qf5 {[%emt 0:00:05]} Nc7 {[%emt 0:00:04]} 32. Qf3 {[%emt 0:02:17]} Qd8 {[%emt 0:00:28]} 33. Kg2 {[%emt 0:00:14]} Ra6 {[%emt 0:01:01]} 34. Re5 {[%emt 0:00:34]} Re6 {[%emt 0:01:20]} 35. Re3 {[%emt 0:01:40]} 1/2-1/2

[Event "44th Chess Olympiad Women 2022"]
[Site "Chennai"]
[Date "2022.08.02"]
[Round "5.1"]
[White "Sebag, Marie"]
[Black "Koneru, Humpy"]
[Result "1/2-1/2"]
[ECO "C81"]
[WhiteElo "2447"]
[BlackElo "2586"]
[Annotator "TA"]
[PlyCount "62"]
[EventDate "2022.07.29"]
[EventType "team-tourn"]
[EventCountry "IND"]
[SourceTitle "playchess.com"]
[Source "ChessBase"]
[SourceQuality "1"]
[WhiteTeam "France"]
[BlackTeam "India"]
[WhiteTeamCountry "FRA"]
[BlackTeamCountry "IND"]
[TimeControl "40/5400+30:1800+30"]

{[%evp 31,62,2,10,5,7,6,4,14,3,6,26,25,25,14,46,32,42,36,66,61,65,66,68,34,31,22,21,15,22,22,15,22,25]} 1. e4 {[%emt 0:00:26]} e5 {[%emt 0:00:06]} 2. Nf3 {[%emt 0:04:40]} Nc6 {[%emt 0:00:10]} 3. Bb5 {[%emt 0:00:09][%cal Bf1b5,Bb5a4,Ba4b3,Bb3c4][%mdl 32]} a6 {[%emt 0:00:12]} 4. Ba4 {[%emt 0:00:05]} Nf6 {[%emt 0:00:18]} 5. O-O {[%emt 0:00:25]} Nxe4 {[%emt 0:00:15]} 6. d4 {[%emt 0:00:12]} b5 {[%emt 0:00:11]} 7. Bb3 {[%emt 0:00:34]} d5 {[%emt 0:00:15]} 8. dxe5 {[%emt 0:00:28]} Be6 {[%emt 0:00:14]} 9. Qe2 {[%emt 0:00:31]} Be7 {[%emt 0:00:28]} 10. Rd1 {[%emt 0:06:09]} O-O {[%emt 0:03:08]} 11. c4 {[%emt 0:02:47]} bxc4 {[%emt 0:00:23]} 12. Bxc4 {[%emt 0:00:12]} Bc5 {[%emt 0:00:26]} 13. Be3 {[%emt 0:00:32]} Bxe3 {[%emt 0:00:44]} 14. Qxe3 {[%emt 0:00:36]} Qb8 {[%emt 0:00:16]} 15. Bb3 {[%emt 0:01:19]} Na5 {[%emt 0:03:49]} 16. Nbd2 {[%emt 0:04:13]} Qa7 {[%emt 0:03:17]} 17. Nxe4 {[%emt 0:07:23] C81: Open Ruy Lopez: Keres Variation (9 Qe2).} Qxe3 {[%emt 0:01:33]} 18. fxe3 {[%emt 0:00:03]} Nxb3 {[%emt 0:00:25]} 19. axb3 {[%emt 0:00:10]} dxe4 {[%emt 0:00:07]} 20. Nd4 {[%emt 0:00:18]} Rfb8 {[%emt 0:02:52]} 21. Rdc1 {[%emt 0:05:12]} Bxb3 {[%emt 0:07:34]} 22. Rxc7 {[%emt 0:00:25] White wants to play Rf1.} Bd5 {[%emt 0:08:30] [#]} 23. b4 $146 {[%emt 0:16:34]} ({Predecessor:} 23. Ra5 Be6 24. Nxe6 fxe6 25. Rc6 Rxb2 26. Rxe6 Rc8 27. h4 Rcc2 28. Raxa6 Rxg2+ 29. Kf1 {1-0 (74) Oliveira,S (2280)-Harshavardhan,G (2397) Chess.com INT 2020}) 23... Rxb4 {[%emt 0:16:36] [#]} 24. Rxa6 $1 {[%emt 0:04:24]} Rf8 {[%emt 0:14:25]} (24... Rbb8 25. Rd6) 25. Rd6 {[%emt 0:19:59] White is more active.} Rb7 {[%emt 0:01:00]} 26. Rxb7 {[%emt 0:04:15]} Bxb7 $14 {[%emt 0:00:02] KRB-KRN} 27. e6 {[%emt 0:00:36]} fxe6 {[%emt 0:03:13]} 28. Nxe6 {[%emt 0:02:03]} Rf6 {[%emt 0:00:13] The position is equal.} 29. Rd8+ {[%emt 0:05:34]} Kf7 {[%emt 0:00:08]} 30. Nc5 {[%emt 0:01:22]} Bc6 {[%emt 0:01:37] Prevents Rd7+.} 31. Rd4 {[%emt 0:00:08]} Kf8 {[%emt 0:14:20] Weighted Error Value: White=0.05 (flawless) /Black=0.07 (flawless)} 1/2-1/2

[Event "44th Chess Olympiad Women 2022"]
[Site "Chennai"]
[Date "2022.08.02"]
[Round "5.1"]
[White "Tania, Sachdev"]
[Black "Navrotescu, Andreea"]
[Result "1-0"]
[ECO "D52"]
[WhiteElo "2399"]
[BlackElo "2373"]
[Annotator "RC"]
[PlyCount "75"]
[EventDate "2022.07.29"]
[EventType "team-tourn"]
[EventCountry "IND"]
[SourceTitle "playchess.com"]
[Source "ChessBase"]
[SourceQuality "1"]
[WhiteTeam "India"]
[BlackTeam "France"]
[WhiteTeamCountry "IND"]
[BlackTeamCountry "FRA"]
[TimeControl "40/5400+30:1800+30"]

1. d4 {[%emt 0:00:14]} d5 {[%emt 0:00:04]} 2. Nf3 {[%emt 0:00:36]} Nf6 {[%emt 0:00:21]} 3. c4 {[%emt 0:00:06]} c6 {[%emt 0:00:05]} 4. Nc3 {[%emt 0:00:07]} e6 {[%emt 0:00:05]} 5. Bg5 {[%emt 0:00:38]} Nbd7 {[%emt 0:00:11]} 6. e3 {[%emt 0:00:28]} Qa5 {[%emt 0:02:38]} 7. Nd2 {[%emt 0:00:53]} Bb4 {[%emt 0:05:22]} 8. Qc1 {[%emt 0:00:38]} dxc4 {[%emt 0:06:23]} 9. Bxf6 {[%emt 0:00:52]} Nxf6 {[%emt 0:00:10]} 10. Nxc4 {[%emt 0:00:43]} Qc7 {[%emt 0:02:58]} 11. Be2 {[%emt 0:04:26]} O-O {[%emt 0:00:51]} 12. O-O {[%emt 0:02:34]} Rd8 {[%emt 0:02:19]} 13. a3 {[%emt 0:05:01]} Bf8 {[%emt 0:00:32]} 14. b4 {[%emt 0:01:31]} b6 {[%emt 0:02:20]} 15. Qc2 {[%emt 0:08:28]} Bb7 {[%emt 0:02:29]} 16. Rfd1 {[%emt 0:02:10]} c5 {[%emt 0:05:33]} 17. dxc5 {[%emt 0:04:14]} bxc5 {[%emt 0:00:38]} 18. b5 {[%emt 0:00:06]} g6 {[%emt 0:02:58]} 19. Rac1 {[%emt 0:27:11]} Rac8 {[%emt 0:08:37]} 20. Qa4 {[%emt 0:03:32]} Nd5 {[%emt 0:22:26]} 21. Nxd5 {[%emt 0:07:20]} exd5 {[%emt 0:04:19]} 22. Na5 {[%emt 0:00:32]} Ba8 {[%emt 0:01:22]} 23. Bg4 {[%emt 0:03:17]} Rb8 {[%emt 0:10:21]} 24. Nc6 {[%emt 0:00:47]} Bxc6 {[%emt 0:00:08]} 25. bxc6 {[%emt 0:00:01]} Bd6 {[%emt 0:06:30]} 26. g3 {[%emt 0:01:57]} h5 {[%emt 0:03:11]} 27. Bd7 {[%emt 0:00:50]} d4 {[%emt 0:00:12]} 28. exd4 {[%emt 0:01:58]} cxd4 {[%emt 0:00:09]} 29. Qxd4 {[%emt 0:01:47]} Bxa3 {[%emt 0:02:44]} 30. Ra1 {[%emt 0:01:46]} Bb2 {[%emt 0:03:27]} 31. Qxa7 {[%emt 0:02:57]} Be5 {[%emt 0:01:10]} 32. Qxc7 {[%emt 0:10:59]} Bxc7 {[%emt 0:00:02]} 33. Ra7 {[%emt 0:01:28]} Bb6 {[%emt 0:01:50]} 34. Rb7 {[%emt 0:03:39]} Rxb7 {[%emt 0:02:07]} 35. cxb7 {[%emt 0:00:02]} Bc7 {[%emt 0:01:11]} 36. Rc1 {[%emt 0:00:42]} Bd6 {[%emt 0:02:13]} 37. Rc8 {[%emt 0:00:12]} Rf8 {[%emt 0:00:03]} 38. Be8 {[%emt 0:00:56]} 1-0

[Event "44th Chess Olympiad Women 2022"]
[Site "Chennai"]
[Date "2022.08.02"]
[Round "5.1"]
[White "Savina, Anastasia"]
[Black "Vaishali R"]
[Result "1/2-1/2"]
[ECO "E46"]
[WhiteElo "2377"]
[BlackElo "2442"]
[Annotator "RC"]
[PlyCount "107"]
[EventDate "2022.07.29"]
[EventType "team-tourn"]
[EventCountry "IND"]
[SourceTitle "playchess.com"]
[Source "ChessBase"]
[SourceQuality "1"]
[WhiteTeam "France"]
[BlackTeam "India"]
[WhiteTeamCountry "FRA"]
[BlackTeamCountry "IND"]
[TimeControl "40/5400+30:1800+30"]

1. d4 {[%emt 0:01:08]} Nf6 {[%emt 0:00:39]} 2. c4 {[%emt 0:00:22]} e6 {[%emt 0:00:18]} 3. Nc3 {[%emt 0:00:22]} Bb4 {[%emt 0:00:11]} 4. e3 {[%emt 0:01:07]} O-O {[%emt 0:00:20]} 5. Bd2 {[%emt 0:00:42]} c5 {[%emt 0:01:03]} 6. d5 {[%emt 0:11:04]} exd5 {[%emt 0:02:33]} 7. cxd5 {[%emt 0:01:27]} d6 {[%emt 0:01:07]} 8. Nge2 {[%emt 0:07:26]} Na6 {[%emt 0:08:52]} 9. a3 {[%emt 0:16:34]} Ba5 {[%emt 0:03:38]} 10. Nf4 {[%emt 0:03:13]} Nc7 {[%emt 0:01:15]} 11. Bd3 {[%emt 0:03:43]} b5 {[%emt 0:07:52]} 12. O-O {[%emt 0:05:46]} c4 {[%emt 0:12:02]} 13. Bc2 {[%emt 0:02:07]} Bb7 {[%emt 0:02:34]} 14. e4 {[%emt 0:02:24]} Bb6 {[%emt 0:01:10]} 15. Nh5 {[%emt 0:07:56]} Nxh5 {[%emt 0:08:25]} 16. Qxh5 {[%emt 0:00:06]} g6 {[%emt 0:00:25]} 17. Qg4 {[%emt 0:04:14]} a5 {[%emt 0:12:29]} 18. Bg5 {[%emt 0:03:23]} f6 {[%emt 0:01:59]} 19. Bh6 {[%emt 0:00:11]} Rf7 {[%emt 0:00:44]} 20. Ne2 {[%emt 0:06:21]} Qd7 {[%emt 0:05:11]} 21. Qg3 {[%emt 0:01:21]} Re8 {[%emt 0:02:20]} 22. Nc3 {[%emt 0:07:51]} Re5 {[%emt 0:12:45]} 23. Kh1 {[%emt 0:02:55]} b4 {[%emt 0:03:38]} 24. axb4 {[%emt 0:01:37]} axb4 {[%emt 0:00:03]} 25. Na4 {[%emt 0:01:04]} Ba7 {[%emt 0:02:54]} 26. Bd2 {[%emt 0:02:32]} Na6 {[%emt 0:05:31]} 27. f4 {[%emt 0:01:22]} Re8 {[%emt 0:00:02]} 28. b3 {[%emt 0:03:54]} c3 {[%emt 0:01:52]} 29. Be3 {[%emt 0:00:16]} Bxe3 {[%emt 0:01:06]} 30. Qxe3 {[%emt 0:00:01]} f5 {[%emt 0:00:24]} 31. Qd4 {[%emt 0:02:32]} fxe4 {[%emt 0:00:53]} 32. Bxe4 {[%emt 0:00:02]} Nc5 {[%emt 0:01:00]} 33. Nxc5 {[%emt 0:01:10]} dxc5 {[%emt 0:00:02]} 34. Qc4 {[%emt 0:00:37]} Rxe4 {[%emt 0:01:38]} 35. Qxe4 {[%emt 0:00:04]} Qxd5 {[%emt 0:00:02]} 36. Qc2 {[%emt 0:00:55]} c4 {[%emt 0:00:44]} 37. bxc4 {[%emt 0:00:35]} Qxc4 {[%emt 0:00:02]} 38. Rac1 {[%emt 0:00:33]} Be4 {[%emt 0:00:47]} 39. Qa4 {[%emt 0:00:07]} Kg7 {[%emt 0:00:55]} 40. Qe8 {[%emt 0:00:42]} Qd5 {[%emt 0:00:30]} 41. Rcd1 {[%emt 0:09:42]} Rxf4 {[%emt 0:16:43]} 42. Qd7+ {[%emt 0:05:05]} Qxd7 {[%emt 0:00:03]} 43. Rxd7+ {[%emt 0:00:07]} Kh6 {[%emt 0:00:02]} 44. Rxf4 {[%emt 0:00:14]} c2 {[%emt 0:00:02]} 45. Rc7 {[%emt 0:06:18]} b3 {[%emt 0:00:07]} 46. Rh4+ {[%emt 0:01:11]} Kg5 {[%emt 0:00:02]} 47. Rxe4 {[%emt 0:00:15]} b2 {[%emt 0:00:03]} 48. h4+ {[%emt 0:00:48]} Kh6 {[%emt 0:00:28]} 49. Rec4 {[%emt 0:02:07]} b1=Q+ {[%emt 0:00:07]} 50. Kh2 {[%emt 0:00:06]} Qe1 {[%emt 0:00:07]} 51. Rc3 {[%emt 0:06:01]} c1=R {[%emt 0:00:17]} 52. Rxc1 {[%emt 0:00:04]} Qxh4+ {[%emt 0:00:04]} 53. Kg1 {[%emt 0:00:02]} Qd4+ {[%emt 0:00:05]} 54. Kh2 {[%emt 0:00:30]} 1/2-1/2

[Event "44th Chess Olympiad Women 2022"]
[Site "Chennai"]
[Date "2022.08.02"]
[Round "5.2"]
[White "Muzychuk, Mariya"]
[Black "Mammadzada, Gunay"]
[Result "1-0"]
[ECO "B52"]
[WhiteElo "2540"]
[BlackElo "2455"]
[Annotator "RC"]
[PlyCount "67"]
[EventDate "2022.07.29"]
[EventType "team-tourn"]
[EventCountry "IND"]
[SourceTitle "playchess.com"]
[Source "ChessBase"]
[SourceQuality "1"]
[WhiteTeam "Ukraine"]
[BlackTeam "Azerbaijan"]
[WhiteTeamCountry "UKR"]
[BlackTeamCountry "AZE"]
[TimeControl "40/5400+30:1800+30"]

1. e4 {[%emt 0:00:04]} c5 {[%emt 0:00:08]} 2. Nf3 {[%emt 0:00:18]} d6 {[%emt 0:00:04]} 3. Bb5+ {[%emt 0:00:12]} Bd7 {[%emt 0:00:05]} 4. Bxd7+ {[%emt 0:00:25]} Nxd7 {[%emt 0:00:51]} 5. O-O {[%emt 0:00:38]} Ngf6 {[%emt 0:00:26]} 6. Qe2 {[%emt 0:01:07]} e6 {[%emt 0:05:37]} 7. d4 {[%emt 0:00:30]} cxd4 {[%emt 0:00:55]} 8. Nxd4 {[%emt 0:00:04]} Rc8 {[%emt 0:01:28]} 9. c4 {[%emt 0:00:58]} Qa5 {[%emt 0:01:35]} 10. Rd1 {[%emt 0:03:17]} a6 {[%emt 0:03:05]} 11. b3 {[%emt 0:04:59]} Be7 {[%emt 0:00:57]} 12. Bb2 {[%emt 0:01:00]} Qh5 {[%emt 0:16:23]} 13. f3 {[%emt 0:04:16]} O-O {[%emt 0:06:23]} 14. Nc3 {[%emt 0:02:42]} Rfe8 {[%emt 0:08:48]} 15. g4 {[%emt 0:15:45]} Qh4 {[%emt 0:12:09]} 16. Qf2 {[%emt 0:00:00]} Qxf2+ {[%emt 0:02:44]} 17. Kxf2 {[%emt 0:00:00]} Ne5 {[%emt 0:06:22]} 18. h3 {[%emt 0:00:00]} g5 {[%emt 0:05:16]} 19. Nde2 {[%emt 0:01:53]} Nfd7 {[%emt 0:03:55]} 20. Rd2 {[%emt 0:02:06]} Nc5 {[%emt 0:02:53]} 21. Rad1 {[%emt 0:00:18]} f6 {[%emt 0:00:54]} 22. Ng3 {[%emt 0:12:26]} Kf7 {[%emt 0:02:24]} 23. Nh5 {[%emt 0:01:12]} Rc7 {[%emt 0:03:28]} 24. Ke3 {[%emt 0:04:26]} Rb8 {[%emt 0:00:44]} 25. Rf1 {[%emt 0:05:15]} b5 {[%emt 0:04:18]} 26. cxb5 {[%emt 0:00:20]} axb5 {[%emt 0:00:01]} 27. f4 {[%emt 0:03:22]} gxf4+ {[%emt 0:02:03]} 28. Nxf4 {[%emt 0:00:25]} b4 {[%emt 0:03:46]} 29. Nce2 {[%emt 0:00:33]} Ra8 {[%emt 0:01:46]} 30. Nc1 {[%emt 0:03:25]} Bf8 {[%emt 0:03:03]} 31. g5 {[%emt 0:02:29]} Ke7 {[%emt 0:00:01]} 32. Nfd3 {[%emt 0:08:24]} Ncxd3 {[%emt 0:02:31]} 33. Nxd3 {[%emt 0:00:19]} Rxa2 {[%emt 0:01:18]} 34. Bxe5 {[%emt 0:00:51]} 1-0

[Event "44th Chess Olympiad Women 2022"]
[Site "Chennai"]
[Date "2022.08.02"]
[Round "5.2"]
[White "Ushenina, Anna"]
[Black "Mammadova, Gulnar"]
[Result "1/2-1/2"]
[ECO "D27"]
[WhiteElo "2423"]
[BlackElo "2380"]
[Annotator "RC"]
[PlyCount "62"]
[EventDate "2022.07.29"]
[EventType "team-tourn"]
[EventCountry "IND"]
[SourceTitle "playchess.com"]
[Source "ChessBase"]
[SourceQuality "1"]
[WhiteTeam "Ukraine"]
[BlackTeam "Azerbaijan"]
[WhiteTeamCountry "UKR"]
[BlackTeamCountry "AZE"]
[TimeControl "40/5400+30:1800+30"]

1. d4 {[%emt 0:00:02]} d5 {[%emt 0:00:09]} 2. Nf3 {[%emt 0:01:03]} Nf6 {[%emt 0:00:09]} 3. c4 {[%emt 0:00:48]} dxc4 {[%emt 0:00:11]} 4. e3 {[%emt 0:01:15]} e6 {[%emt 0:00:12]} 5. Bxc4 {[%emt 0:00:06]} c5 {[%emt 0:00:08]} 6. O-O {[%emt 0:00:46]} a6 {[%emt 0:00:07]} 7. a4 {[%emt 0:14:00]} cxd4 {[%emt 0:00:40]} 8. exd4 {[%emt 0:00:07]} Nc6 {[%emt 0:00:07]} 9. Nc3 {[%emt 0:01:18]} Be7 {[%emt 0:00:14]} 10. Bg5 {[%emt 0:08:12]} O-O {[%emt 0:00:46]} 11. Re1 {[%emt 0:09:30]} h6 {[%emt 0:00:18]} 12. Bf4 {[%emt 0:02:55]} Nd5 {[%emt 0:06:10]} 13. Bg3 {[%emt 0:00:49]} Bb4 {[%emt 0:05:40]} 14. Qd3 {[%emt 0:02:39]} Nce7 {[%emt 0:03:53]} 15. Ba2 {[%emt 0:06:59]} Nf5 {[%emt 0:19:38]} 16. Rac1 {[%emt 0:07:41]} Nf6 {[%emt 0:05:04]} 17. Be5 {[%emt 0:13:17]} Bd7 {[%emt 0:05:28]} 18. Bb1 {[%emt 0:09:30]} Bc6 {[%emt 0:08:02]} 19. Nh4 {[%emt 0:01:45]} Bxc3 {[%emt 0:11:23]} 20. bxc3 {[%emt 0:05:47]} g6 {[%emt 0:06:38]} 21. Nxf5 {[%emt 0:01:53]} exf5 {[%emt 0:00:21]} 22. Ba2 {[%emt 0:04:06]} b5 {[%emt 0:06:51]} 23. Rcd1 {[%emt 0:06:22]} Nd5 {[%emt 0:02:23]} 24. f3 {[%emt 0:00:42]} Qa5 {[%emt 0:04:00]} 25. Qd2 {[%emt 0:00:30]} Kh7 {[%emt 0:00:18]} 26. Rc1 {[%emt 0:00:37]} Rfe8 {[%emt 0:01:27]} 27. axb5 {[%emt 0:00:40]} axb5 {[%emt 0:00:17]} 28. Bb1 {[%emt 0:00:04]} Qd8 {[%emt 0:03:59]} 29. c4 {[%emt 0:00:35]} bxc4 {[%emt 0:00:28]} 30. Rxc4 {[%emt 0:00:01]} Re6 {[%emt 0:00:21]} 31. Rec1 {[%emt 0:01:17]} Qd7 {[%emt 0:02:10]} 1/2-1/2

[Event "44th Chess Olympiad Women 2022"]
[Site "Chennai"]
[Date "2022.08.02"]
[Round "5.2"]
[White "Beydullayeva, Govhar"]
[Black "Muzychuk, Anna"]
[Result "1/2-1/2"]
[ECO "D85"]
[WhiteElo "2390"]
[BlackElo "2529"]
[Annotator "RC"]
[PlyCount "60"]
[EventDate "2022.07.29"]
[EventType "team-tourn"]
[EventCountry "IND"]
[SourceTitle "playchess.com"]
[Source "ChessBase"]
[SourceQuality "1"]
[WhiteTeam "Azerbaijan"]
[BlackTeam "Ukraine"]
[WhiteTeamCountry "AZE"]
[BlackTeamCountry "UKR"]
[TimeControl "40/5400+30:1800+30"]

1. d4 {[%emt 0:00:05]} Nf6 {[%emt 0:00:07]} 2. c4 {[%emt 0:00:13]} g6 {[%emt 0:00:08]} 3. Nc3 {[%emt 0:00:13]} d5 {[%emt 0:00:09]} 4. cxd5 {[%emt 0:00:22]} Nxd5 {[%emt 0:00:07]} 5. e4 {[%emt 0:00:08]} Nxc3 {[%emt 0:00:07]} 6. bxc3 {[%emt 0:00:03]} Bg7 {[%emt 0:00:15]} 7. Nf3 {[%emt 0:00:13]} c5 {[%emt 0:00:39]} 8. Bb5+ {[%emt 0:00:20]} Nc6 {[%emt 0:00:36]} 9. O-O {[%emt 0:00:27]} O-O {[%emt 0:00:20]} 10. Bxc6 {[%emt 0:00:44]} bxc6 {[%emt 0:00:02]} 11. Qc2 {[%emt 0:00:17]} cxd4 {[%emt 0:05:08]} 12. cxd4 {[%emt 0:02:35]} Bg4 {[%emt 0:01:01]} 13. Ne5 {[%emt 0:00:41]} Qxd4 {[%emt 0:00:24]} 14. Bb2 {[%emt 0:00:05]} Qb6 {[%emt 0:05:58]} 15. Rab1 {[%emt 0:00:35]} Bxe5 {[%emt 0:00:25]} 16. Bxe5 {[%emt 0:00:01]} Qa5 {[%emt 0:00:26]} 17. Bc3 {[%emt 0:00:17]} Qc5 {[%emt 0:00:44]} 18. Qb2 {[%emt 0:00:24]} a5 {[%emt 0:00:56]} 19. Bd4 {[%emt 0:01:52]} Qd6 {[%emt 0:00:28]} 20. Qc3 {[%emt 0:00:06]} Be2 {[%emt 0:02:54]} 21. Rfe1 {[%emt 0:01:07]} Bb5 {[%emt 0:00:19]} 22. Rbd1 {[%emt 0:04:54]} Qe6 {[%emt 0:10:18]} 23. Bg7 {[%emt 0:18:08]} Rfe8 {[%emt 0:08:52]} 24. Bh6 {[%emt 0:02:44]} f6 {[%emt 0:04:29]} 25. e5 {[%emt 0:05:23]} f5 {[%emt 0:01:23]} 26. Rd4 {[%emt 0:13:48]} a4 {[%emt 0:11:18]} 27. a3 {[%emt 0:10:48]} Rad8 {[%emt 0:12:06]} 28. Rxd8 {[%emt 0:07:20]} Rxd8 {[%emt 0:00:02]} 29. Qa5 {[%emt 0:00:09]} Qd5 {[%emt 0:13:04]} 30. e6 {[%emt 0:01:00]} Be2 {[%emt 0:03:49]} 1/2-1/2

[Event "44th Chess Olympiad Women 2022"]
[Site "Chennai"]
[Date "2022.08.02"]
[Round "5.2"]
[White "Fataliyeva, Ulviyya"]
[Black "Buksa, Nataliya"]
[Result "1-0"]
[ECO "D30"]
[WhiteElo "2372"]
[BlackElo "2401"]
[Annotator "RC"]
[PlyCount "77"]
[EventDate "2022.07.29"]
[EventType "team-tourn"]
[EventCountry "IND"]
[SourceTitle "playchess.com"]
[Source "ChessBase"]
[SourceQuality "1"]
[WhiteTeam "Azerbaijan"]
[BlackTeam "Ukraine"]
[WhiteTeamCountry "AZE"]
[BlackTeamCountry "UKR"]
[TimeControl "40/5400+30:1800+30"]

1. d4 {[%emt 0:00:03]} d5 {[%emt 0:00:08]} 2. c4 {[%emt 0:00:06]} e6 {[%emt 0:00:03]} 3. Nf3 {[%emt 0:00:04]} Nf6 {[%emt 0:00:13]} 4. Bg5 {[%emt 0:00:05]} Be7 {[%emt 0:01:46]} 5. e3 {[%emt 0:02:09]} h6 {[%emt 0:00:04]} 6. Bxf6 {[%emt 0:00:05]} Bxf6 {[%emt 0:00:04]} 7. Qc2 {[%emt 0:00:08]} O-O {[%emt 0:00:43]} 8. h4 {[%emt 0:00:10]} c5 {[%emt 0:14:53]} 9. g4 {[%emt 0:00:16]} cxd4 {[%emt 0:17:21]} 10. g5 {[%emt 0:00:17]} dxe3 {[%emt 0:00:03]} 11. fxe3 {[%emt 0:00:53]} Be7 {[%emt 0:07:57]} 12. gxh6 {[%emt 0:01:15]} Bb4+ {[%emt 0:09:02]} 13. Nbd2 {[%emt 0:01:31]} Qf6 {[%emt 0:00:56]} 14. hxg7 {[%emt 0:03:18]} Qxf3 {[%emt 0:00:48]} 15. gxf8=Q+ {[%emt 0:01:02]} Kxf8 {[%emt 0:00:02]} 16. Rh3 {[%emt 0:00:51]} Qg4 {[%emt 0:00:59]} 17. h5 {[%emt 0:03:15]} Bd6 {[%emt 0:08:35]} 18. Nb3 {[%emt 0:13:11]} e5 {[%emt 0:03:22]} 19. h6 {[%emt 0:06:56]} Bf5 {[%emt 0:08:48]} 20. Qd1 {[%emt 0:14:51]} Qxd1+ {[%emt 0:16:09]} 21. Rxd1 {[%emt 0:00:26]} Bxh3 {[%emt 0:01:30]} 22. Bxh3 {[%emt 0:00:46]} Nc6 {[%emt 0:05:02]} 23. cxd5 {[%emt 0:05:44]} Ne7 {[%emt 0:01:01]} 24. Ke2 {[%emt 0:00:05]} Kg8 {[%emt 0:00:43]} 25. Rg1+ {[%emt 0:01:55]} Kh7 {[%emt 0:00:13]} 26. Na5 {[%emt 0:05:28]} Bc7 {[%emt 0:02:16]} 27. Nxb7 {[%emt 0:13:10]} Nxd5 {[%emt 0:00:02]} 28. Bg2 {[%emt 0:00:08]} Ne7 {[%emt 0:00:06]} 29. Rd1 {[%emt 0:00:19]} Bb6 {[%emt 0:01:28]} 30. Rd7 {[%emt 0:00:29]} Ng8 {[%emt 0:00:31]} 31. Nd6 {[%emt 0:00:52]} Rb8 {[%emt 0:00:22]} 32. Nxf7 {[%emt 0:01:28]} Nf6 {[%emt 0:00:06]} 33. Rd6 {[%emt 0:01:31]} Ng4 {[%emt 0:00:30]} 34. Be4+ {[%emt 0:01:59]} Kg8 {[%emt 0:00:04]} 35. Ng5 {[%emt 0:01:41]} Bxe3 {[%emt 0:01:22]} 36. h7+ {[%emt 0:03:39]} Kg7 {[%emt 0:00:14]} 37. Rg6+ {[%emt 0:00:16]} Kh8 {[%emt 0:00:04]} 38. Nf7+ {[%emt 0:00:07]} Kxh7 {[%emt 0:00:04]} 39. Rxg4# {[%emt 0:00:05]} 1-0